bitfinex/quotes_SOLUSD_20220306
["timestamp","ask_amount","ask_price","bid_price","bid_amount"]
[1646592575129,47.2817,86.576,86.49,17.3486]
[1646592575130,1.295,86.575,86.49,17.3486]
[1646592575929,1.295,86.575,86.51,17.3396]
[1646592579644,47.2817,86.576,86.51,17.3396]
[1646592583247,1.268,86.575,86.51,17.3396]
[1646592583852,17.3437,86.57,86.51,17.3396]
[1646592584051,1.258,86.569,86.51,17.3396]
[1646592584250,115.558,86.569,86.51,17.3396]
[1646592584650,115.558,86.569,86.48,57.8175]
[1646592584651,184.338,86.569,86.49,17.3479]
[1646592584850,183.08,86.559,86.473,24.5824]
[1646592585053,114.3,86.557,86.473,24.5824]
[1646592585250,25.044,86.558,86.473,24.5824]
[1646592585251,114.3,86.549,86.473,24.5824]
[1646592585452,1.24,86.548,86.473,24.5824]
[1646592586051,1.24,86.548,86.48,17.351]
[1646592586254,1.231,86.555,86.48,17.351]
[1646592586551,1.55030162,86.542,86.512,2.9947738]
[1646592586750,1.55030162,86.543,86.512,2.9947738]
[1646592587151,1.55030162,86.547,86.512,2.9947738]
[1646592587353,1.55030162,86.548,86.512,2.9947738]
[1646592587652,1.55030162,86.549,86.512,2.9947738]
[1646592588453,1.55030162,86.551,86.512,2.9947738]
[1646592588755,1.55030162,86.552,86.512,2.9947738]
[1646592588955,1.55030162,86.555,86.512,2.9947738]
[1646592589153,1.55030162,86.56,86.512,2.9947738]
[1646592589554,1.55030162,86.56,86.52,17.3431]
[1646592589752,1.55030162,86.559,86.52,17.3431]
[1646592590152,1.55030162,86.558,86.52,17.3431]
[1646592590553,17.3471,86.55,86.512,2.9947738]
[1646592590955,1.55030162,86.545,86.512,2.9947738]
[1646592591356,1.286,86.544,86.512,2.9947738]
[1646592591555,1.55030162,86.547,86.512,2.9947738]
[1646592591754,18.89790162,86.55,86.512,2.9947738]
[1646592592153,17.3476,86.55,86.512,2.9947738]
[1646592592554,1.55030162,86.551,86.512,2.9947738]
[1646592593553,1.55030162,86.552,86.512,2.9947738]
[1646592594156,17.3472,86.55,86.512,2.9947738]
[1646592594755,18.89750162,86.55,86.512,2.9947738]
[1646592595156,17.3472,86.55,86.512,2.9947738]
[1646592595460,1.286,86.549,86.512,2.9947738]
[1646592597060,1.55030162,86.565,86.512,2.9947738]
[1646592597258,1.55030162,86.566,86.512,2.9947738]
[1646592597462,1.55030162,86.571,86.512,2.9947738]
[1646592597662,1.55030162,86.571,86.52,17.3436]
[1646592598060,1.55030162,86.575,86.52,17.3436]
[1646592598260,1.55030162,86.584,86.52,31.1236]
[1646592598560,1.286,86.583,86.52,31.1236]
[1646592598760,1.55030162,86.589,86.52,31.1236]
[1646592598963,1.55030162,86.584,86.52,31.1236]
[1646592599160,1.55030162,86.586,86.52,31.1236]
[1646592599360,1.55030162,86.585,86.52,31.1236]
[1646592599561,1.55030162,86.586,86.52,31.1236]
[1646592599961,1.55030162,86.584,86.52,31.1236]
[1646592600164,1.55030162,86.583,86.52,31.1236]
[1646592600763,1.286,86.582,86.52,17.3436]
[1646592601063,1.55030162,86.572,86.52,17.3436]
[1646592601262,1.55030162,86.569,86.52,17.3436]
[1646592601662,1.286,86.568,86.52,17.3436]
[1646592602063,1.55030162,86.568,86.52,17.3436]
[1646592602364,2.83630162,86.569,86.52,17.3436]
[1646592602565,1.286,86.569,86.52,17.3436]
[1646592602965,1.286,86.572,86.52,17.3436]
[1646592603166,1.55030162,86.573,86.52,17.3436]
[1646592603566,1.55030162,86.574,86.52,17.3436]
[1646592604567,1.55030162,86.575,86.52,17.3436]
[1646592605672,1.55030162,86.577,86.52,17.3436]
[1646592606068,1.55030162,86.578,86.52,17.3436]
[1646592606269,1.286,86.586,86.52,17.3436]
[1646592606270,1.55030162,86.579,86.52,17.3436]
[1646592606969,1.55030162,86.58,86.52,17.3436]
[1646592607370,1.55030162,86.581,86.52,17.3436]
[1646592608170,1.55030162,86.584,86.52,17.3436]
[1646592608471,1.286,86.583,86.521,114.3]
[1646592608670,1.55030162,86.588,86.521,114.3]
[1646592608870,1.55030162,86.589,86.54,17.3348]
[1646592609074,1.286,86.588,86.541,55.90046308]
[1646592609273,1.55030162,86.589,86.541,55.90046308]
[1646592609571,1.55030162,86.591,86.541,55.90046308]
[1646592609774,1.55030162,86.592,86.55,17.3351]
[1646592609973,1.55030162,86.598,86.55,17.3351]
[1646592610373,1.55030162,86.6,86.55,17.3351]
[1646592610596,1.55030162,86.607,86.55,17.3351]
[1646592610975,1.55030162,86.612,86.55,17.3351]
[1646592611276,1.55030162,86.611,86.55,17.3351]
[1646592611476,1.55030162,86.612,86.55,17.3351]
[1646592612176,1.55030162,86.611,86.55,17.3351]
[1646592612376,1.55030162,86.612,86.55,17.3351]
[1646592612575,1.55030162,86.616,86.55,17.3351]
[1646592612775,1.55030162,86.615,86.55,24.9051]
[1646592612978,1.55030162,86.618,86.55,24.9051]
[1646592613185,1.286,86.629,86.57,17.3302]
[1646592613186,1.55030162,86.625,86.57,17.3302]
[1646592613384,1.55030162,86.637,86.571,170.30059455]
[1646592613585,1.55030162,86.639,86.571,170.30059455]
[1646592613783,1.55030162,86.639,86.573,114.3]
[1646592614186,1.55030162,86.647,86.573,114.3]
[1646592614383,1.55030162,86.65,86.591,114.3]
[1646592614584,1.55030162,86.65,86.602,52.15074]
[1646592614784,1.55030162,86.658,86.602,52.15074]
[1646592614984,1.55030162,86.668,86.602,52.15074]
[1646592615485,1.286,86.667,86.602,52.15074]
[1646592615686,1.55030162,86.672,86.61,17.3159]
[1646592616086,1.55030162,86.673,86.611,5.769]
[1646592616287,1.55030162,86.673,86.603,51.8027]
[1646592616687,1.55030162,86.679,86.604,114.3]
[1646592616884,1.55030162,86.679,86.62,17.3194]
[1646592617286,1.55030162,86.68,86.62,17.3194]
[1646592617485,1.55030162,86.679,86.62,17.3194]
[1646592618100,1.55030162,86.68,86.62,17.3194]
[1646592618500,1.55030162,86.681,86.62,17.3194]
[1646592618700,1.55030162,86.68,86.62,17.3194]
[1646592618902,1.55030162,86.684,86.62,17.3194]
[1646592619204,1.55030162,86.685,86.62,17.3194]
[1646592619400,1.286,86.684,86.62,17.3194]
[1646592619603,26.35134921,86.684,86.62,17.3194]
[1646592619803,27.63734921,86.683,86.62,17.3194]
[1646592620203,26.35134921,86.682,86.62,17.3194]
[1646592620402,1.286,86.681,86.62,17.3194]
[1646592620602,17.3198,86.69,86.62,17.3194]
[1646592620603,1.55030162,86.686,86.621,114.3]
[1646592620804,68.76891754,86.762,86.62,31.0994]
[1646592620805,1.55030162,86.715,86.641,114.3]
[1646592621004,1.55030162,86.724,86.651,114.3]
[1646592621303,1.55030162,86.729,86.651,114.3]
[1646592621503,1.55030162,86.728,86.652,5.767]
[1646592621706,1.55030162,86.733,86.652,5.767]
[1646592622005,1.55030162,86.726,86.65,13.78]
[1646592622204,1.55030162,86.72,86.63,13.78]
[1646592622403,1.55030162,86.716,86.631,22.8232]
[1646592622602,183.08,86.719,86.631,22.8232]
[1646592622603,1.55030162,86.709,86.631,22.8232]
[1646592622804,1.55030162,86.699,86.631,22.8232]
[1646592623003,114.3,86.699,86.631,22.8232]
[1646592623203,1.55030162,86.696,86.602,5.769]
[1646592623404,1.55030162,86.689,86.603,22.8232]
[1646592623603,113.4,86.686,86.603,22.8232]
[1646592623904,17.3241,86.68,86.61,17.3241]
[1646592624704,183.08,86.679,86.592,22.7899]
[1646592624906,17.3281,86.66,86.592,22.7899]
[1646592625103,1.286,86.659,86.592,22.7899]
[1646592626105,115.587,86.668,86.592,22.7899]
[1646592626506,1.287,86.668,86.592,22.7899]
[1646592627010,1.287,86.668,86.59,17.3264]
[1646592627409,1.55030162,86.669,86.591,5.771]
[1646592627608,1.55030162,86.667,86.582,5.771]
[1646592628108,1.289,86.666,86.581,54.84150216]
[1646592628510,2.83930162,86.666,86.581,54.84150216]
[1646592628709,1.289,86.666,86.581,54.84150216]
[1646592629309,1.289,86.666,86.59,17.3266]
[1646592629512,1.29,86.669,86.59,17.3266]
[1646592630010,1.55030162,86.668,86.59,17.3266]
[1646592630212,1.55030162,86.666,86.59,17.3266]
[1646592630410,1.292,86.665,86.59,17.3266]
[1646592631011,1.292,86.665,86.582,5.771]
[1646592631211,1.55030162,86.656,86.577,5.772]
[1646592631410,1.55030162,86.65,86.561,5.772]
[1646592631612,1.55030162,86.643,86.561,5.772]
[1646592631812,1.295,86.642,86.561,5.772]
[1646592632214,114.3,86.639,86.57,17.3323]
[1646592632411,17.3356,86.64,86.577,5.773]
[1646592632611,1.55030162,86.645,86.577,5.773]
[1646592632813,1.292,86.644,86.577,5.773]
[1646592633212,1.287,86.648,86.577,5.773]
[1646592633413,1.282,86.65,86.577,5.773]
[1646592633616,1.55030162,86.648,86.577,5.773]
[1646592633816,17.3297,86.64,86.58,17.3301]
[1646592634015,17.3297,86.64,86.581,5.773]
[1646592635119,1.55030162,86.646,86.591,49.49469522]
[1646592635518,1.55030162,86.645,86.591,49.49469522]
[1646592636417,17.3298,86.64,86.59,17.3283]
[1646592636621,18.88010162,86.64,86.59,17.3283]
[1646592636817,17.3298,86.64,86.59,17.3283]
[1646592637017,18.88010162,86.64,86.59,17.3283]
[1646592637217,18.88010162,86.64,86.577,5.772]
[1646592637421,18.88010162,86.64,86.58,63.90811013]
[1646592637617,1.55030162,86.639,86.581,5.773]
[1646592637818,1.266,86.638,86.58,63.90811013]
[1646592638020,1.266,86.639,86.58,63.90811013]
[1646592638518,2.81630162,86.639,86.58,63.90811013]
[1646592639020,1.55030162,86.636,86.58,63.90811013]
[1646592639220,2.81630162,86.635,86.58,63.90811013]
[1646592639419,1.55030162,86.635,86.58,63.90811013]
[1646592640221,1.55030162,86.639,86.581,5.773]
[1646592640423,1.55030162,86.641,86.59,17.3247]
[1646592640622,1.55030162,86.649,86.591,5.772]
[1646592640821,1.55030162,86.65,86.581,5.772]
[1646592641023,1.55030162,86.649,86.581,5.772]
[1646592641424,1.55030162,86.649,86.582,114.3]
[1646592641622,26.24220162,86.652,86.584,114.3]
[1646592641823,26.24220162,86.652,86.585,5.772]
[1646592642223,1.55030162,86.651,86.6,17.3241]
[1646592643027,1.55030162,86.649,86.6,17.3241]
[1646592643628,1.55030162,86.648,86.6,17.3241]
[1646592644428,1.55030162,86.648,86.601,5.772]
[1646592644628,1.55030162,86.649,86.611,53.00575689]
[1646592645131,1.55030162,86.65,86.611,53.00575689]
[1646592645328,1.55030162,86.649,86.611,53.00575689]
[1646592645529,1.326,86.651,86.611,53.00575689]
[1646592645730,1.326,86.651,86.612,5.771]
[1646592646230,1.326,86.651,86.613,114.3]
[1646592646529,1.326,86.651,86.615,114.3]
[1646592646730,1.326,86.651,86.62,17.3229]
[1646592646935,1.55030162,86.659,86.62,17.3229]
[1646592647429,1.55030162,86.661,86.62,17.3229]
[1646592647632,1.55030162,86.659,86.62,17.3229]
[1646592648030,1.55030162,86.658,86.62,17.3229]
[1646592648830,1.55030162,86.655,86.62,17.3229]
[1646592649029,1.55030162,86.656,86.62,17.3229]
[1646592649230,1.55030162,86.657,86.62,17.3229]
[1646592649429,1.55030162,86.658,86.62,17.3229]
[1646592649630,1.55030162,86.657,86.62,17.3229]
[1646592650832,1.55030162,86.654,86.62,17.3229]
[1646592651231,1.55030162,86.651,86.612,24.3811]
[1646592651434,1.55030162,86.649,86.61,17.3248]
[1646592651631,1.55030162,86.649,86.601,5.771]
[1646592651854,1.55030162,86.642,86.601,5.771]
[1646592652056,1.55030162,86.645,86.602,53.49911133]
[1646592652254,1.55030162,86.646,86.602,53.49911133]
[1646592652455,1.55030162,86.647,86.61,17.3251]
[1646592652858,1.55030162,86.644,86.61,17.3251]
[1646592653057,1.55030162,86.642,86.61,17.3251]
[1646592654059,1.55030162,86.641,86.61,17.3251]
[1646592654556,1.55030162,86.642,86.61,17.3251]
[1646592654755,1.55030162,86.64,86.61,17.3251]
[1646592654956,1.55030162,86.641,86.61,17.3251]
[1646592655255,1.55030162,86.64,86.61,17.3251]
[1646592655656,1.55030162,86.639,86.61,17.3251]
[1646592657057,1.55030162,86.639,86.58,13.78]
[1646592657258,1.55030162,86.639,86.559,114.3]
[1646592657459,1.55030162,86.623,86.559,114.3]
[1646592657656,1.55030162,86.62,86.559,114.3]
[1646592657858,1.55030162,86.619,86.559,114.3]
[1646592658059,1.55030162,86.619,86.56,56.74145404]
[1646592658256,1.55030162,86.619,86.56,74.07505404]
[1646592659257,1.55030162,86.618,86.56,74.07505404]
[1646592659468,1.55030162,86.619,86.56,74.07505404]
[1646592659869,1.55030162,86.62,86.56,74.07505404]
[1646592660470,1.55030162,86.619,86.56,74.07505404]
[1646592660871,1.55030162,86.625,86.56,74.07505404]
[1646592662072,1.55030162,86.623,86.56,74.07505404]
[1646592662271,1.55030162,86.624,86.56,74.07505404]
[1646592663074,1.55030162,86.623,86.56,74.07505404]
[1646592665477,1.55030162,86.624,86.56,74.07505404]
[1646592665679,17.3328,86.62,86.56,17.3336]
[1646592665884,1.55030162,86.618,86.55,17.3367]
[1646592666080,25.28428135,86.633,86.55,17.3367]
[1646592666081,1.55030162,86.617,86.55,17.3367]
[1646592666280,1.55030162,86.613,86.55,17.3367]
[1646592666881,17.3359,86.61,86.55,17.3367]
[1646592667081,1.23,86.609,86.55,17.3367]
[1646592667280,1.226,86.617,86.55,17.3367]
[1646592667481,1.54822983,86.608,86.55,17.3367]
[1646592667683,1.222,86.607,86.55,17.3367]
[1646592668486,1.222,86.607,86.52,13.78]
[1646592668487,2.69226936,86.607,86.52,13.78]
[1646592668686,2.69226936,86.607,86.474,3.14569578]
[1646592668687,1.54822983,86.592,86.501,48.1427]
[1646592668885,1.54822983,86.586,86.501,48.1427]
[1646592669285,1.54822983,86.576,86.501,48.1427]
[1646592669485,1.54822983,86.575,86.52,17.343]
[1646592669686,1.54822983,86.575,86.508,51.27657409]
[1646592669885,1.54822983,86.575,86.509,114.3]
[1646592670087,1.54822983,86.578,86.509,114.3]
[1646592670487,1.54822983,86.579,86.509,114.3]
[1646592670687,1.54822983,86.579,86.53,17.3398]
[1646592670887,1.54822983,86.58,86.53,17.3398]
[1646592671489,1.54822983,86.588,86.53,17.3398]
[1646592671688,1.23,86.587,86.54,17.339]
[1646592672089,1.54822983,86.589,86.54,17.339]
[1646592672292,24.3912,86.598,86.541,5.776]
[1646592672488,24.3912,86.598,86.535,5.775]
[1646592672787,24.3912,86.598,86.55,17.3328]
[1646592677799,100.0,86.6,86.55,17.3328]
[1646592678000,100.0,86.6,86.551,5.775]
[1646592678232,100.0,86.6,86.561,45.82822965]
[1646592678436,100.0,86.6,86.562,5.774]
[1646592679436,100.0,86.6,86.57,17.327]
[1646592679637,100.0,86.6,86.571,5.774]
[1646592679836,100.0,86.6,86.561,45.82822965]
[1646592680237,100.0,86.6,86.562,114.3]
[1646592680636,100.0,86.6,86.58,17.3287]
[1646592680839,100.0,86.6,86.58,31.1087]
[1646592681036,100.0,86.6,86.581,5.774]
[1646592682235,100.0,86.6,86.591,57.56047931]
[1646592682937,100.0,86.6,86.59,17.325]
[1646592683136,100.0,86.6,86.581,5.774]
[1646592683337,100.0,86.6,86.56,57.7661]
[1646592683538,100.0,86.6,86.56,71.5461]
[1646592683944,100.0,86.6,86.561,48.5345985]
[1646592684940,100.0,86.6,86.57,17.3318]
[1646592685340,100.0,86.6,86.526,23.9107802]
[1646592685539,100.0,86.6,86.5,24.3898]
[1646592685740,100.0,86.6,86.52,13.78]
[1646592685940,1.287,86.599,86.52,13.78]
[1646592686139,1.287,86.599,86.55,17.3374]
[1646592688543,100.0,86.6,86.55,17.3374]
[1646592689545,100.0,86.6,86.56,13.78]
[1646592689747,100.0,86.6,86.57,17.3241]
[1646592689949,100.0,86.6,86.571,58.60306029]
[1646592690848,100.0,86.6,86.58,17.3271]
[1646592692749,100.0,86.6,86.57,17.3327]
[1646592692950,100.0,86.6,86.55,13.78]
[1646592693155,100.0,86.6,86.54,57.7807]
[1646592693752,100.0,86.6,86.543,53.65255075]
[1646592693953,100.0,86.6,86.55,17.3365]
[1646592694752,1.288,86.599,86.55,17.3365]
[1646592697657,100.0,86.6,86.55,17.3365]
[1646592700261,100.0,86.6,86.55,31.1165]
[1646592701062,100.0,86.6,86.551,114.3]
[1646592701265,100.0,86.6,86.561,114.3]
[1646592701465,100.0,86.6,86.57,13.78]
[1646592701673,100.0,86.6,86.571,46.03404005]
[1646592702867,100.0,86.6,86.58,17.3264]
[1646592704485,1.54822983,86.624,86.571,60.5199137]
[1646592705083,1.256,86.623,86.58,17.3264]
[1646592705483,1.54822983,86.622,86.58,17.3264]
[1646592705686,1.54822983,86.624,86.58,17.3264]
[1646592706083,1.54822983,86.625,86.58,17.3264]
[1646592708085,1.54822983,86.624,86.58,17.3264]
[1646592708685,1.54822983,86.625,86.58,17.3264]
[1646592709486,1.54822983,86.624,86.58,17.3264]
[1646592710087,1.54822983,86.625,86.58,17.3264]
[1646592711189,1.54822983,86.624,86.58,17.3264]
[1646592712491,1.54822983,86.622,86.58,17.3264]
[1646592712690,1.54822983,86.624,86.58,17.3264]
[1646592713090,1.54822983,86.623,86.58,17.3264]
[1646592715398,1.54822983,86.624,86.58,17.3264]
[1646592716194,1.54822983,86.623,86.58,17.3264]
[1646592717297,1.54822983,86.622,86.58,17.3264]
[1646592717494,1.54822983,86.623,86.58,17.3264]
[1646592718495,1.54822983,86.619,86.572,22.9074]
[1646592718695,1.54822983,86.615,86.572,22.9074]
[1646592718895,24.7045,86.635,86.572,22.9074]
[1646592718896,2.09901722,86.614,86.572,22.9074]
[1646592719697,1.54822983,86.614,86.572,22.9074]
[1646592720401,1.54822983,86.611,86.54,13.78]
[1646592720800,2.83222983,86.61,86.54,13.78]
[1646592721000,1.54822983,86.61,86.54,13.78]
[1646592721200,1.54822983,86.61,86.548,63.0613088]
[1646592721402,1.281,86.609,86.56,17.3334]
[1646592721601,2.82922983,86.609,86.561,64.75208046]
[1646592721801,1.54822983,86.609,86.561,64.75208046]
[1646592723101,1.54822983,86.609,86.57,17.3319]
[1646592724003,1.54822983,86.611,86.57,17.3319]
[1646592724603,1.54822983,86.623,86.57,31.1119]
[1646592725005,1.54822983,86.628,86.57,31.1119]
[1646592725504,1.54822983,86.629,86.571,114.3]
[1646592725905,1.54822983,86.629,86.581,56.89636971]
[1646592726105,1.54822983,86.628,86.581,171.19636971]
[1646592726305,1.54822983,86.636,86.581,171.19636971]
[1646592726910,1.54822983,86.637,86.59,17.3206]
[1646592727107,1.54822983,86.637,86.59,31.1006]
[1646592727510,1.54822983,86.636,86.59,31.1006]
[1646592727707,1.54822983,86.635,86.59,31.1006]
[1646592728108,1.54822983,86.635,86.591,114.3]
[1646592728509,1.54822983,86.646,86.603,114.3]
[1646592728708,1.54822983,86.648,86.603,114.3]
[1646592729108,1.54822983,86.647,86.602,58.16861986]
[1646592729509,1.54822983,86.647,86.61,17.3203]
[1646592729709,1.54822983,86.653,86.61,17.3203]
[1646592729909,1.54822983,86.651,86.61,17.3203]
[1646592731109,1.54822983,86.655,86.61,31.1003]
[1646592731310,1.54822983,86.661,86.61,31.1003]
[1646592731709,1.54822983,86.662,86.61,31.1003]
[1646592731909,1.54822983,86.657,86.61,31.1003]
[1646592732109,1.54822983,86.652,86.61,31.1003]
[1646592732308,1.54822983,86.653,86.61,31.1003]
[1646592732710,1.54822983,86.654,86.61,31.1003]
[1646592732911,1.54822983,86.657,86.61,31.1003]
[1646592734111,1.54822983,86.659,86.61,31.1003]
[1646592734713,1.54822983,86.657,86.61,31.1003]
[1646592735113,6.31416625,86.674,86.61,31.1003]
[1646592735114,1.54822983,86.656,86.61,31.1003]
[1646592735317,1.54822983,86.659,86.61,31.1003]
[1646592736414,1.54822983,86.66,86.61,31.1003]
[1646592737414,1.202,86.675,86.61,31.1003]
[1646592737415,1.54822983,86.662,86.611,114.3]
[1646592737615,1.54822983,86.666,86.621,114.3]
[1646592737815,1.54822983,86.666,86.62,17.3138]
[1646592737816,1.54822983,86.675,86.623,114.3]
[1646592738018,1.54822983,86.689,86.623,114.3]
[1646592738214,1.54822983,86.695,86.623,114.3]
[1646592738416,1.54822983,86.696,86.623,123.26]
[1646592738718,1.54822983,86.698,86.631,114.3]
[1646592738918,1.54822983,86.698,86.641,114.3]
[1646592739215,1.54822983,86.695,86.641,46.70263357]
[1646592739415,1.258,86.694,86.641,46.70263357]
[1646592739615,2.80622983,86.694,86.65,17.3123]
[1646592740221,1.258,86.694,86.65,17.3123]
[1646592742827,1.286,86.693,86.65,17.3123]
[1646592743026,2.86222983,86.696,86.65,17.3123]
[1646592743626,1.54822983,86.695,86.65,17.3123]
[1646592743826,1.342,86.694,86.65,17.3123]
[1646592744426,1.342,86.694,86.642,24.7026]
[1646592744726,1.54822983,86.686,86.621,24.7026]
[1646592744927,1.54822983,86.677,86.621,24.7026]
[1646592745328,2.83422983,86.676,86.621,24.7026]
[1646592745529,1.54822983,86.675,86.621,24.7026]
[1646592746142,1.54822983,86.674,86.621,24.7026]
[1646592746745,1.54822983,86.674,86.63,17.3211]
[1646592746947,1.54822983,86.674,86.631,63.04238836]
[1646592747145,1.54822983,86.678,86.631,63.04238836]
[1646592747747,1.54822983,86.682,86.631,63.04238836]
[1646592747947,24.6383,86.696,86.631,63.04238836]
[1646592747948,1.54822983,86.683,86.631,63.04238836]
[1646592748348,1.54822983,86.682,86.631,63.04238836]
[1646592748747,1.54822983,86.683,86.631,63.04238836]
[1646592748948,1.54822983,86.685,86.64,17.3166]
[1646592749749,1.54822983,86.686,86.64,17.3166]
[1646592749948,1.54822983,86.685,86.64,17.3166]
[1646592750151,1.54822983,86.686,86.64,17.3166]
[1646592750549,1.54822983,86.686,86.631,63.04238836]
[1646592750951,1.54822983,86.675,86.631,63.04238836]
[1646592751150,1.54822983,86.673,86.631,63.04238836]
[1646592751348,1.54822983,86.673,86.621,24.7026]
[1646592751550,1.54822983,86.672,86.621,24.7026]
[1646592751950,1.54822983,86.672,86.63,17.321]
[1646592752150,1.54822983,86.671,86.63,17.321]
[1646592752349,1.54822983,86.665,86.631,58.00441239]
[1646592752750,1.54822983,86.665,86.621,24.7026]
[1646592752950,1.54822983,86.668,86.621,24.7026]
[1646592753749,1.54822983,86.668,86.625,46.12675481]
[1646592754150,1.54822983,86.668,86.64,17.3198]
[1646592754651,1.54822983,86.667,86.64,17.3198]
[1646592755052,1.54822983,86.666,86.64,17.3198]
[1646592755452,1.54822983,86.663,86.64,17.3198]
[1646592755853,1.54822983,86.667,86.64,17.3198]
[1646592757052,1.54822983,86.668,86.64,17.3198]
[1646592757251,1.54822983,86.667,86.64,17.3198]
[1646592758353,1.54822983,86.666,86.64,17.3198]
[1646592758652,1.54822983,86.665,86.64,17.3198]
[1646592761653,1.54822983,86.668,86.64,17.3198]
[1646592762053,1.54822983,86.671,86.64,17.3198]
[1646592762454,1.54822983,86.672,86.64,17.3198]
[1646592762853,1.54822983,86.671,86.64,17.3198]
[1646592763054,1.37559321,86.673,86.64,17.3198]
[1646592763655,6.31280804,86.694,86.64,17.3198]
[1646592763857,6.31280804,86.695,86.64,17.3198]
[1646592765857,1.287,86.694,86.64,17.3198]
[1646592766059,6.31280804,86.693,86.64,17.3198]
[1646592766460,6.31280804,86.695,86.64,17.3198]
[1646592769960,9.40926769,86.695,86.64,17.3198]
[1646592770160,1.286,86.694,86.64,17.3198]
[1646592770563,6.31280804,86.693,86.64,17.3198]
[1646592770763,1.304,86.692,86.64,17.3198]
[1646592771170,6.31280804,86.691,86.64,17.3198]
[1646592771367,1.322,86.69,86.64,17.3198]
[1646592771575,6.31280804,86.689,86.64,17.3198]
[1646592771971,6.31280804,86.692,86.64,17.3198]
[1646592773268,0.68173264,86.691,86.6,13.78]
[1646592773469,3.09645965,86.683,86.597,23.542]
[1646592773670,0.68173264,86.677,86.598,5.771]
[1646592773869,114.3,86.687,86.598,5.771]
[1646592773870,0.68173264,86.675,86.598,5.771]
[1646592774074,0.68173264,86.673,86.599,48.96077988]
[1646592774270,7.43680804,86.672,86.6,5.771]
[1646592774475,0.68173264,86.67,86.6,5.771]
[1646592774675,6.31280804,86.669,86.6,5.771]
[1646592774876,0.68173264,86.668,86.6,5.771]
[1646592775074,6.31280804,86.667,86.6,17.3262]
[1646592775275,0.68173264,86.665,86.601,5.771]
[1646592775474,0.68173264,86.665,86.597,23.542]
[1646592775475,0.68173264,86.663,86.598,5.771]
[1646592775679,0.68173264,86.661,86.598,5.771]
[1646592775875,23.3704,86.671,86.598,5.771]
[1646592775876,0.68173264,86.659,86.598,5.771]
[1646592776079,0.68173264,86.657,86.598,5.771]
[1646592776275,0.68173264,86.655,86.597,23.542]
[1646592776476,6.9543834,86.654,86.597,23.542]
[1646592776682,114.3,86.649,86.585,5.771]
[1646592776877,0.68173264,86.647,86.569,5.772]
[1646592777076,0.68173264,86.647,86.561,5.772]
[1646592777278,6.31624639,86.646,86.561,5.772]
[1646592777476,114.3,86.639,86.561,5.772]
[1646592777678,114.3,86.639,86.57,17.3336]
[1646592777679,17.3309,86.63,86.57,17.3336]
[1646592777878,0.68173264,86.629,86.57,17.3336]
[1646592778278,0.68173264,86.638,86.57,17.3336]
[1646592779079,17.3336,86.62,86.57,76.84283836]
[1646592779282,22.7911,86.638,86.584,61.91397386]
[1646592779897,24.4086,86.648,86.584,61.91397386]
[1646592780095,24.4086,86.648,86.585,5.772]
[1646592780494,24.4086,86.648,86.59,17.3292]
[1646592781295,24.4086,86.648,86.591,5.772]
[1646592781497,24.4086,86.648,86.6,17.3264]
[1646592781898,24.4086,86.648,86.584,61.91397386]
[1646592782796,1.285,86.647,86.584,61.91397386]
[1646592782995,24.4086,86.648,86.59,17.3292]
[1646592783196,24.4086,86.648,86.591,5.772]
[1646592783595,24.4086,86.648,86.585,5.772]
[1646592784196,24.4086,86.648,86.601,64.60785307]
[1646592786597,24.4086,86.648,86.602,5.772]
[1646592787504,17.329,86.64,86.601,5.772]
[1646592787704,17.329,86.64,86.582,5.772]
[1646592787904,17.329,86.64,86.561,28.8678]
[1646592788105,114.3,86.639,86.561,28.8678]
[1646592788505,1.281,86.638,86.562,47.20014686]
[1646592788706,183.08,86.629,86.53,13.78]
[1646592788905,0.57937593,86.627,86.531,5.774]